[Event "3rd President Cup-A 2024"]
[Site "Tashkent"]
[Date "2024.11.27"]
[Round "7.1"]
[White "Puranik, Abhimanyu"]
[Black "Abdusattorov, Nodirbek"]
[Result "1/2-1/2"]
[ECO "B14"]
[WhiteElo "2652"]
[BlackElo "2777"]
[Annotator "TA"]
[PlyCount "46"]
[EventDate "2024.11.22"]
[EventType "swiss"]
[EventCountry "UZB"]
[SourceTitle "playchess.com"]
[Source "ChessBase"]
[SourceQuality "1"]
[TimeControl "5400+30"]

{[%evp 21,46,20,19,28,31,20,35,0,0,0,0,0,0,0,0,0,0,0,0,0,0,0,0,0,0,0,0]} 1. e4 {[%emt 0:00:17]} c6 {[%emt 0:00:41]} 2. d4 {[%emt 0:00:20]} d5 {[%emt 0:00:06]} 3. exd5 {[%emt 0:00:30]} cxd5 {[%emt 0:00:06]} 4. Nf3 {[%emt 0:00:03]} Nc6 {[%emt 0:01:02]} 5. c4 {[%emt 0:02:02]} e6 {[%emt 0:05:47]} 6. Nc3 {[%emt 0:00:57]} Nf6 {[%emt 0:01:34]} 7. c5 {[%emt 0:00:53]} Be7 {[%emt 0:02:20]} 8. Bb5 {[%emt 0:00:37]} O-O {[%emt 0:00:07]} 9. O-O {[%emt 0:03:51]} Ne4 {[%emt 0:00:15]} 10. Re1 {[%emt 0:03:13]} Nxc3 {[%emt 0:01:41]} 11. bxc3 {[%emt 0:00:03]} Bd7 {[%emt 0:00:05]} 12. Bd3 {[%emt 0:03:03]} b6 {[%emt 0:00:40]} 13. cxb6 {[%emt 0:00:52]} axb6 {[%emt 0:00:07]} 14. a4 {[%emt 0:04:01] White is slightly better.} Bd6 {[%emt 0:05:34] The position is equal.} 15. Ng5 {[%emt 0:08:11]} g6 {[%emt 0:22:05]} 16. Nxh7 {[%emt 0:16:09]} Kxh7 {[%emt 0:00:09]} 17. Qh5+ {[%emt 0:00:04]} Kg8 {[%emt 0:00:07]} 18. Bxg6 {[%emt 0:00:30]} fxg6 {[%emt 0:00:01]} 19. Qxg6+ {[%emt 0:00:05]} Kh8 {[%emt 0:00:01]} 20. Qh5+ {[%emt 0:02:37]} Kg8 $1 {[%emt 0:00:11]} (20... Kg7 $2 21. Bh6+ Kf6 22. Bg5+ Kg7 23. Qh6+ (23. Bxd8 Raxd8 24. Qg5+ Kf7 $18) 23... Kf7 24. Qh7+ (24. Bxd8 Nxd8 25. Re3 Ra7 $18) 24... Ke8 25. Qh5+ (25. Bxd8 Kxd8 26. Rab1 Rb8 $18) 25... Rf7 26. Bxd8 $18) 21. Qg4+ {[%emt 0:04:51]} Kh8 {[%emt 0:02:53]} 22. Qh5+ {[%emt 0:03:32]} Kg8 $1 {[%emt 0:00:05]} (22... Kg7 23. Bh6+ Kf6 24. Bg5+ Kg7 25. Qh6+ (25. Bxd8 Nxd8 26. Qg4+ Kf6 $18) 25... Kf7 26. Qh7+ (26. Bxd8 Nxd8 27. Re3 Ke8 $18) 26... Ke8 27. Qh5+ (27. Bxd8 Kxd8 28. g3 Be7 $18) 27... Rf7 28. Bxd8 $18) 23. Qg6+ {[%emt 0:00:02]} Kh8 {[%emt 0:00:02] An uneventful encounter.   Weighted Error Value: White=0.04 (flawless) /Black=0.00 (flawless) .  Inaccurate:     	White=1     	---        OK:         	White=7     	Black=3      Best:        	White=1     	Black=1      Strong:       	---       	Black=2} 1/2-1/2

[Event "3rd President Cup-A 2024"]
[Site "Tashkent"]
[Date "2024.11.27"]
[Round "7.2"]
[White "Sindarov, Javokhir"]
[Black "Sankalp Gupta"]
[Result "1-0"]
[ECO "A20"]
[WhiteElo "2682"]
[BlackElo "2539"]
[Annotator "TA"]
[PlyCount "89"]
[EventDate "2024.11.22"]
[EventType "swiss"]
[EventCountry "UZB"]
[SourceTitle "playchess.com"]
[Source "ChessBase"]
[SourceQuality "1"]
[TimeControl "5400+30"]

{[%evp 23,89,35,28,16,58,49,48,47,66,7,79,71,62,48,77,14,22,19,20,21,37,16,9,9,11,0,0,-86,21,0,0,0,0,0,0,0,188,186,188,191,210,39,33,29,68,0,29,8,129,4,4,0,85,89,154,114,116,109,155,159,138,134,1044,787,2119,2042,2218,2206]} 1. c4 {[%emt 0:00:03]} e5 {[%emt 0:03:44]} 2. g3 {[%emt 0:00:12]} c6 {[%emt 0:00:31]} 3. Nf3 {[%emt 0:00:14]} e4 {[%emt 0:00:29]} 4. Nd4 {[%emt 0:00:05]} d5 {[%emt 0:00:49]} 5. cxd5 {[%emt 0:00:11]} Qxd5 {[%emt 0:00:14]} 6. Nc2 {[%emt 0:00:08] A20: English Opening: 1...e5.} Nf6 {[%emt 0:01:07]} 7. Nc3 {[%emt 0:00:44]} Qe5 {[%emt 0:02:35]} 8. Bg2 {[%emt 0:00:38]} Be7 {[%emt 0:10:34]} 9. Ne3 {[%emt 0:15:16]} Na6 {[%emt 0:00:06]} 10. a3 {[%emt 0:03:21]} O-O {[%emt 0:14:19]} 11. b4 {[%emt 0:18:00]} Nd5 $146 {[%emt 0:05:47]} ({Predecessor:} 11... Re8 12. Bb2 Qe6 13. O-O Nc7 14. Qc2 Bd6 15. f3 exf3 16. Rxf3 Be5 17. Raf1 Qe7 {1-0 Sevian,S (2684)-Vachier Lagrave,M (2757) Chess.com Rapid CGC KO 2022 (2.5)}) 12. Ncxd5 {[%emt 0:00:11]} cxd5 {[%emt 0:00:14]} 13. Rb1 $1 {[%emt 0:00:05]} Rd8 {[%emt 0:11:12]} 14. O-O {[%emt 0:12:28]} Nc7 {[%emt 0:07:46]} 15. Bb2 {[%emt 0:00:54]} Qh5 {[%emt 0:00:31]} 16. Rc1 {[%emt 0:01:30]} (16. Qc2 $14 Ne6 17. d3) 16... Ne6 {[%emt 0:04:51]} (16... Ne8 $11) 17. f4 $16 {[%emt 0:02:41]} Nf8 {[%emt 0:04:44]} 18. d3 {[%emt 0:09:35]} a5 {[%emt 0:06:39]} 19. Be5 {[%emt 0:05:12]} (19. dxe4 dxe4 20. Qc2 axb4 21. axb4 (21. Bxe4 bxa3 22. Be5 Qh6 $19) 21... Bxb4 $14) (19. Rc7 $16 Bd6 20. Rc2 axb4 21. axb4 (21. dxe4 bxa3 22. Ba1 dxe4 $17)) 19... d4 {[%emt 0:03:54]} 20. Rxc8 {[%emt 0:00:33]} Raxc8 {[%emt 0:02:15]} 21. g4 $1 {[%emt 0:00:07]} Qg6 $1 {[%emt 0:00:04]} 22. Bxe4 {[%emt 0:13:20]} Qa6 {[%emt 0:02:45]} 23. Nf5 {[%emt 0:02:13]} Bf6 {[%emt 0:00:01]} 24. bxa5 {[%emt 0:00:10]} Rd7 {[%emt 0:02:07]} 25. Qb3 {[%emt 0:02:22]} (25. Qd2 $11) 25... Rc5 {[%emt 0:01:08]} (25... Bxe5 $17 26. fxe5 Qxa5 27. Nxd4 Qxe5) 26. Bxf6 {[%emt 0:07:19]} (26. Nd6 $5) 26... Qxf6 {[%emt 0:00:18]} 27. Bxb7 {[%emt 0:00:33]} Rxa5 {[%emt 0:01:12]} 28. Qb4 {[%emt 0:01:41]} Ra7 {[%emt 0:01:15]} 29. Be4 {[%emt 0:00:17]} g6 $2 {[%emt 0:03:06]} (29... Ne6 $11) 30. g5 $18 {[%emt 0:00:24]} Qd8 {[%emt 0:00:01]} 31. Nh6+ {[%emt 0:00:15]} Kg7 {[%emt 0:00:03] [#]} 32. Ng4 $2 {[%emt 0:00:14]} ({Only move:} 32. h4 $1 $18) 32... Ne6 $14 {[%emt 0:03:24]} 33. Nf6 {[%emt 0:00:14]} Rdc7 {[%emt 0:00:28]} 34. h4 {[%emt 0:03:18]} Rc2 {[%emt 0:03:05]} 35. Rf2 {[%emt 0:00:01]} Nc5 {[%emt 0:01:20]} (35... Ra6 $11) 36. f5 {[%emt 0:01:38]} (36. Bd5 $16 Ra4 37. Qb1) 36... Nxe4 $11 {[%emt 0:03:07]} 37. Nxe4 {[%emt 0:00:05]} gxf5 {[%emt 0:00:47]} (37... Ra5 $11 {keeps the balance.}) 38. Nd6 $16 {[%emt 0:00:11]} Rc1+ {[%emt 0:00:44] [#]} ({Better is} 38... Kg8) 39. Kg2 $1 $16 {[%emt 0:00:09]} Kg8 {[%emt 0:01:23]} 40. Nxf5 {[%emt 0:00:14]} (40. Qxd4 Qa8+ 41. Rf3 Ra4 $14) 40... Qd5+ {[%emt 0:00:48]} ({Black should try} 40... Rc6 41. a4 (41. Qxd4 Qxd4 42. Nxd4 Rg6 $14) (41. Nxd4 Rb6 $16) 41... Re6 42. Nxd4 (42. Qxd4 Qxd4 43. Nxd4 Rg6 $14) 42... Rb6) 41. Rf3 $16 {[%emt 0:00:14]} Qe5 {[%emt 0:00:01]} 42. Qb2 {[%emt 0:00:41]} ({Much weaker is} 42. Nxd4 $6 Rd7 43. e3 Rd1 $11) 42... Re1 $2 {[%emt 0:01:10][%mdl 8192]} (42... Rc3 $16 43. a4 Rd7) 43. e4 {[%emt 0:00:22]} Rd7 {[%emt 0:00:46]} 44. Nh6+ {[%emt 0:00:33]} Kg7 {[%emt 0:00:11]} 45. Qf2 {[%emt 0:00:07]} 1-0

[Event "3rd President Cup-A 2024"]
[Site "Tashkent"]
[Date "2024.11.27"]
[Round "7.3"]
[White "Nihal Sarin"]
[Black "Nigmatov, Ortik"]
[Result "1-0"]
[ECO "D35"]
[WhiteElo "2676"]
[BlackElo "2447"]
[Annotator "TA"]
[PlyCount "75"]
[EventDate "2024.11.22"]
[EventType "swiss"]
[EventCountry "UZB"]
[SourceTitle "playchess.com"]
[Source "ChessBase"]
[SourceQuality "1"]
[TimeControl "5400+30"]

{[%evp 12,75,0,0,114,116,99,111,119,116,116,109,114,104,108,108,108,112,110,106,115,115,122,115,172,157,152,152,169,156,163,162,165,157,168,160,166,158,171,175,170,170,168,169,229,225,236,231,290,233,264,264,314,311,282,245,243,256,266,272,265,259,281,280,281,273]} 1. d4 {[%emt 0:00:46]} d5 {[%emt 0:00:19]} 2. Nf3 {[%emt 0:00:13]} Nf6 {[%emt 0:00:08]} 3. c4 {[%emt 0:00:04]} e6 {[%emt 0:00:07][%cal Be7e6,Be6d5][%mdl 32]} 4. cxd5 {[%emt 0:00:03]} exd5 {[%emt 0:00:09]} 5. Qc2 {[%emt 0:00:04]} c6 {[%emt 0:02:01]} 6. Nc3 {[%emt 0:00:35]} g6 {[%emt 0:04:20]} 7. Bg5 {[%emt 0:01:23]} h6 {[%emt 0:00:16] [#]} (7... Be7 $11) 8. Bxf6 $1 $16 {[%emt 0:01:18]} Qxf6 {[%emt 0:06:26] [#]} 9. Nxd5 $1 {[%emt 0:00:06]} Qd8 {[%emt 0:06:09] White is better.} (9... Qd6 10. Qe4+) 10. Nc3 {[%emt 0:05:36] White is more active.} Bg7 {[%emt 0:00:33]} 11. e3 {[%emt 0:00:15]} Be6 {[%emt 0:02:03]} 12. Be2 {[%emt 0:03:04]} O-O {[%emt 0:00:27]} 13. O-O {[%emt 0:00:05]} Nd7 {[%emt 0:00:17]} 14. h3 {[%emt 0:00:22]} Rc8 {[%emt 0:03:22]} 15. Rfd1 {[%emt 0:02:16]} Re8 {[%emt 0:06:37]} 16. Rac1 {[%emt 0:03:41]} Qa5 {[%emt 0:07:40]} 17. Nd2 {[%emt 0:12:30]} b5 {[%emt 0:00:40]} (17... Qg5 $16) 18. Nb3 {[%emt 1:07:09]} Qb4 19. Ne4 {[%emt 0:00:00]} Bf8 {[%emt 0:09:56]} 20. Nbc5 {[%emt 0:00:00]} Nxc5 {[%emt 0:08:41]} 21. a3 {[%emt 0:00:00]} (21. dxc5 Red8 $16) 21... Qb3 {[%emt 0:05:11]} 22. Nxc5 {[%emt 0:00:00]} (22. Nf6+ Kh8 $18) 22... Bxc5 {[%emt 0:00:25]} 23. Qxc5 {[%emt 0:00:00]} (23. dxc5 Qxc2 24. Rxc2 Bb3 $17) 23... Qxb2 {[%emt 0:00:49]} 24. Bf3 {[%emt 0:00:00]} Bd5 {[%emt 0:02:10] [#]} 25. Rb1 $1 {[%emt 0:00:00]} ({Much weaker is} 25. Bxd5 $6 cxd5 26. Rb1 (26. Qxc8 Rxc8 27. Rxc8+ Kg7 $11) 26... Qxb1 27. Rxb1 Rxc5 28. dxc5 Rb8 $14) 25... Qa2 {[%emt 0:00:48]} 26. Bxd5 {[%emt 0:00:00]} ({Not} 26. Qxa7 Bxf3 27. gxf3 b4 $11) 26... cxd5 {[%emt 0:00:43]} 27. Qxb5 {[%emt 0:00:00]} Re6 {[%emt 0:05:11]} (27... h5 $142 28. a4 Kg7) 28. Qd7 $18 {[%emt 0:00:00][%csl LRa7,LRc8]} Qc2 {[%emt 0:04:22]} 29. Qxa7 {[%emt 0:00:00]} Qe2 {[%emt 0:08:38]} 30. Re1 {[%emt 0:00:00]} Qd2 {[%emt 0:00:11]} 31. Rf1 {[%emt 0:00:00]} Rf6 {[%emt 0:08:08]} 32. Qd7 {[%emt 0:00:00]} Qc3 {[%emt 0:02:40]} 33. Qxd5 {[%emt 0:00:00]} Qxa3 {[%emt 0:00:07]} 34. Ra1 {[%emt 0:00:00][%cal Bb1a1,Ba1a7,Ba7c7][%mdl 32]} Qf8 {[%emt 0:01:04] White has a decisive advantage.} 35. Rfc1 {[%emt 0:00:00] And now Rxc8 would win.} Rd8 {[%emt 0:00:12]} 36. Qc5 {[%emt 0:00:00]} Qe8 {[%emt 0:00:17]} 37. Ra7 {[%emt 0:00:00]} Re6 {[%emt 0:01:11]} 38. Rc7 {[%emt 0:00:00] Black did not feel at home in the position after the opening.   Weighted Error Value: White=0.05 (flawless) /Black=0.19 (very precise) .  Mistake:       	---       	Black=2      OK:         	White=18    	Black=7      Strong:       	White=1     	---        Brilliant:      	White=1     	---} 1-0

[Event "3rd President Cup-A 2024"]
[Site "Tashkent"]
[Date "2024.11.27"]
[Round "7.4"]
[White "Maghsoodloo, Parham"]
[Black "Neelash Saha"]
[Result "1/2-1/2"]
[ECO "D16"]
[WhiteElo "2712"]
[BlackElo "2458"]
[Annotator "TA"]
[PlyCount "61"]
[EventDate "2024.11.22"]
[EventType "swiss"]
[EventCountry "UZB"]
[SourceTitle "playchess.com"]
[Source "ChessBase"]
[SourceQuality "1"]
[TimeControl "5400+30"]

{[%evp 12,61,3,8,20,18,19,12,8,0,19,11,18,18,0,0,0,0,0,0,0,0,26,0,16,0,0,0,0,0,0,0,0,0,4,0,0,-9,0,0,6,12,13,15,16,0,0,0,0,0,0,-12]} 1. c4 {[%emt 0:02:09]} c6 {[%emt 0:03:29]} 2. d4 {[%emt 0:00:22]} d5 {[%emt 0:00:06]} 3. Nc3 {[%emt 0:00:04]} Nf6 {[%emt 0:00:05]} 4. Nf3 {[%emt 0:00:03]} dxc4 {[%emt 0:00:26]} 5. a4 {[%emt 0:00:22]} e6 {[%emt 0:00:37]} 6. e3 {[%emt 0:00:44]} c5 {[%emt 0:00:06]} 7. Bxc4 {[%emt 0:00:04]} cxd4 {[%emt 0:00:03]} 8. exd4 {[%emt 0:00:06]} Be7 {[%emt 0:00:05]} 9. O-O {[%emt 0:00:07]} O-O {[%emt 0:00:04]} 10. Qe2 {[%emt 0:01:10]} Nc6 {[%emt 0:00:04]} 11. Rd1 {[%emt 0:00:08]} Nb4 {[%emt 0:00:05]} 12. Bg5 {[%emt 0:02:28]} h6 {[%emt 0:24:34]} 13. Bh4 {[%emt 0:01:21]} Bd7 {[%emt 0:00:07]} 14. Ne5 {[%emt 0:16:16]} Bc6 {[%emt 0:00:17]} 15. a5 {[%emt 0:02:30]} Nfd5 {[%emt 0:02:52][%cal Bf6d5,Bd5c3,Bc3e2][%mdl 32]} 16. Bg3 {[%emt 0:01:30]} Be8 {[%emt 0:07:57]} 17. Bb3 {[%emt 0:11:50]} Rc8 {[%emt 0:02:16] The position is equal.} 18. Qf3 {[%emt 0:01:27]} Bc6 {[%emt 0:11:57]} 19. h3 {[%emt 0:05:13]} Nxc3 {[%emt 0:04:49]} 20. Nxc6 {[%emt 0:00:07]} Ne2+ $1 {[%emt 0:01:38]} ({Don't play} 20... Nxc6 $6 21. bxc3 Nxa5 22. Bc2 $16) 21. Qxe2 {[%emt 0:00:09]} Rxc6 {[%emt 0:04:15]} 22. Bf4 {[%emt 0:03:16]} Bd6 {[%emt 0:03:03]} 23. Bd2 {[%emt 0:02:52]} Nd5 {[%emt 0:06:33]} 24. Qf3 {[%emt 0:03:58]} Bb8 {[%emt 0:02:03]} 25. Rac1 {[%emt 0:06:33]} Rxc1 {[%emt 0:06:52]} 26. Rxc1 {[%emt 0:00:13]} Qd7 {[%emt 0:00:10]} 27. Bxd5 {[%emt 0:03:38]} exd5 {[%emt 0:01:10]} 28. Rc5 {[%emt 0:03:02]} Rd8 {[%emt 0:00:07]} 29. Qb3 {[%emt 0:03:19]} a6 {[%emt 0:00:58]} 30. Rc1 {[%emt 0:02:04]} Re8 {[%emt 0:01:27]} 31. Re1 {[%emt 0:03:01] An even fight not without its subleties.   Weighted Error Value: White=0.04 (flawless) /Black=0.04 (flawless) .  Inaccurate:     	White=1     	Black=1      OK:         	White=7     	Black=10     Best:        	White=1     	---        Strong:       	---       	Black=1} 1/2-1/2

[Event "3rd President Cup-A 2024"]
[Site "Tashkent"]
[Date "2024.11.27"]
[Round "7.5"]
[White "Vokhidov, Shamsiddin"]
[Black "Yakubboev, Nodirbek"]
[Result "1-0"]
[ECO "C55"]
[WhiteElo "2681"]
[BlackElo "2668"]
[Annotator "TA"]
[PlyCount "73"]
[EventDate "2024.11.22"]
[EventType "swiss"]
[EventCountry "UZB"]
[SourceTitle "playchess.com"]
[Source "ChessBase"]
[SourceQuality "1"]
[TimeControl "5400+30"]

{[%evp 13,73,10,15,21,21,23,22,20,31,10,23,24,25,29,17,0,9,-85,-79,-85,-104,-104,-117,-130,-129,-172,-140,-160,-167,-175,-125,-122,-129,-124,-133,-133,-123,-130,-122,-138,-135,-235,-226,-250,-243,-248,-249,-347,-348,-363,-162,-126,0,0,0,0,0,0,0,0,696,685]} 1. e4 {[%emt 0:00:08]} e5 {[%emt 0:00:27]} 2. Nf3 {[%emt 0:00:28]} Nc6 {[%emt 0:00:06]} 3. Bc4 {[%emt 0:00:24]} Nf6 {[%emt 0:00:18]} 4. d3 {[%emt 0:00:25]} Be7 {[%emt 0:00:17]} 5. O-O {[%emt 0:01:08]} O-O {[%emt 0:00:18]} 6. Nc3 {[%emt 0:00:13]} h6 {[%emt 0:00:57]} 7. h3 {[%emt 0:03:25]} d6 {[%emt 0:01:05]} 8. a3 {[%emt 0:00:24]} Be6 {[%emt 0:05:48][%cal Of6e4]} 9. Nd5 {[%emt 0:01:52]} Qd7 {[%emt 0:00:56]} 10. Re1 {[%emt 0:03:45] The position is equal.} Bd8 {[%emt 0:04:40]} 11. Ba2 {[%emt 0:08:14]} Nh7 {[%emt 0:17:01]} 12. c3 {[%emt 0:09:24]} Ne7 {[%emt 0:04:40]} 13. d4 {[%emt 0:00:28]} Ng6 {[%emt 0:01:58]} 14. c4 {[%emt 0:05:49]} Ng5 {[%emt 0:06:04]} 15. Be3 {[%emt 0:09:41]} (15. dxe5 $11 dxe5 16. Bxg5 Bxg5 17. Nxg5 hxg5 18. c5) 15... Nxe4 $17 {[%emt 0:05:25]} 16. Bb1 {[%emt 0:11:06]} f5 {[%emt 0:09:26]} 17. dxe5 {[%emt 0:00:49]} dxe5 {[%emt 0:01:24]} 18. Bxe4 {[%emt 0:02:18]} fxe4 {[%emt 0:00:03]} 19. Nd2 {[%emt 0:01:43] [#]} Bxh3 $1 {[%emt 0:12:18][%mdl 512]} 20. gxh3 {[%emt 0:06:21]} (20. Bc5 Bg4) 20... Qxh3 {[%emt 0:00:06] ...Nh4 is the strong threat.} 21. Qe2 {[%emt 0:00:27][%cal Oe2f1]} c6 {[%emt 0:06:05]} ({Black should try} 21... Nh4 $19 {[%csl Gh4][%cal Rh3g2]} 22. Qf1 Qg4+ 23. Kh2 Rf3 (23... c6 24. Qh3 $17)) 22. Qf1 {[%emt 0:06:26] Wards off Qg2+} Qg4+ $40 {[%emt 0:00:37][%mdl 128] Black is out for blood.} 23. Qg2 {[%emt 0:00:03]} Qxg2+ {[%emt 0:00:35]} 24. Kxg2 {[%emt 0:00:02][%cal Bg1g2,Bg2f1,Bf1e2,Be2e3,Be3e4,Be4e5,Be5f5][%mdl 32]} cxd5 {[%emt 0:00:06]} 25. cxd5 {[%emt 0:00:02]} Nh4+ {[%emt 0:04:59]} 26. Kf1 {[%emt 0:00:07]} Nf3 {[%emt 0:00:48]} 27. Red1 {[%emt 0:00:04] [#]} (27. Re2 $17) 27... Bg5 $1 $19 {[%emt 0:02:43] ...Bxe3 would now be deadly.} 28. Ke2 {[%emt 0:02:41] [#]} Bxe3 $1 {[%emt 0:02:27]} 29. Kxe3 {[%emt 0:00:04]} Nd4 {[%emt 0:00:54] aiming for ...Nc2+.} 30. Kxe4 {[%emt 0:07:12]} Rxf2 {[%emt 0:02:08]} 31. d6 {[%emt 0:00:40]} Nf5 {[%emt 0:08:06]} (31... Rf4+ $142 32. Kd5 Nc2) 32. Nc4 {[%emt 0:02:38]} Rf4+ {[%emt 0:00:40]} (32... Rd8 $17 {Strongly threatening ...b5.} 33. a4 Ng3+ 34. Kxe5 h5) 33. Kxe5 $11 {[%emt 0:01:59]} Rxc4 {[%emt 0:00:28]} 34. Kxf5 {[%emt 0:00:02] Threatens to win with d7.} Re8 {[%emt 0:02:13] ( -> ...Kf7)} 35. Rac1 {[%emt 0:02:24]} Rce4 {[%emt 0:00:21]} 36. Rd5 {[%emt 0:00:03] Dodges R8e5+} R8e6 $2 {[%emt 0:00:46][%mdl 8192]} (36... Kh7 $11 37. Rc7 Re3) 37. Rg1 {[%emt 0:00:19] Weighted Error Value: White=0.20 (precise) /Black=0.38.  Loses game:     	---       	Black=1      Mistake:       	White=2     	Black=3      Inaccurate:     	White=2     	---        OK:         	White=4     	Black=13     Best:        	White=5     	Black=1      Strong:       	---       	Black=1} 1-0

[Event "3rd President Cup-A 2024"]
[Site "Tashkent"]
[Date "2024.11.27"]
[Round "7.6"]
[White "Prraneeth Vuppala"]
[Black "Karthikeyan, Murali"]
[Result "1/2-1/2"]
[ECO "B22"]
[WhiteElo "2459"]
[BlackElo "2625"]
[Annotator "TA"]
[PlyCount "130"]
[EventDate "2024.11.22"]
[EventType "swiss"]
[EventCountry "UZB"]
[SourceTitle "playchess.com"]
[Source "ChessBase"]
[SourceQuality "1"]
[TimeControl "5400+30"]

{[%evp 65,130,0,0,0,0,0,0,0,0,0,0,0,0,0,0,0,0,0,0,-18,0,0,0,0,0,0,0,0,4,0,36,36,75,75,75,75,75,75,75,75,75,75,75,75,75,75,75,75,75,75,75,75,75,75,75,75,75,0,0,0,0,0,0,0,0,0,0]} 1. e4 {[%emt 0:00:07]} c5 {[%emt 0:00:13]} 2. Nf3 {[%emt 0:00:12]} e6 {[%emt 0:00:53]} 3. c3 {[%emt 0:00:50]} d5 {[%emt 0:00:28]} 4. exd5 {[%emt 0:00:42]} Qxd5 {[%emt 0:02:37]} 5. d4 {[%emt 0:00:22]} Nf6 {[%emt 0:00:09]} 6. Be2 {[%emt 0:02:06]} Nc6 {[%emt 0:00:43]} 7. Na3 {[%emt 0:02:06]} cxd4 {[%emt 0:01:59]} 8. Nb5 {[%emt 0:00:16]} Qd8 {[%emt 0:02:09]} 9. Nbxd4 {[%emt 0:11:29]} Nxd4 {[%emt 0:02:30] 9...Bd7 is more fashionable.} 10. Qxd4 {[%emt 0:02:34]} Qxd4 {[%emt 0:01:15]} 11. Nxd4 {[%emt 0:00:08]} Bc5 {[%emt 0:03:31] B22: Sicilian: 2 c3.} 12. Nb3 {[%emt 0:12:42]} Bb6 {[%emt 0:04:32]} 13. a4 {[%emt 0:04:01]} a5 {[%emt 0:06:17]} 14. Nd2 {[%emt 0:03:22]} Bd7 $146 {[%emt 0:11:39]} ({Predecessor:} 14... O-O 15. Nc4 Bc7 16. Bf3 e5 17. O-O Be6 18. Be2 Nd5 19. Re1 Rad8 20. Bf1 Nf4 21. Bxf4 exf4 {0-1 Hong,X (1995)-Sun,J (1870) China zt 3.5 (Women) 2023 (4)}) 15. Nc4 {[%emt 0:05:56]} Bc7 {[%emt 0:00:48]} 16. Bf3 {[%emt 0:06:06]} Nd5 {[%emt 0:06:07]} 17. Ne3 {[%emt 0:04:48]} Nb6 {[%emt 0:10:06]} 18. b3 {[%emt 0:05:04]} Be5 {[%emt 0:09:11]} 19. Bd2 {[%emt 0:02:15]} Bc6 {[%emt 0:01:00]} 20. Bxc6+ {[%emt 0:04:52]} bxc6 {[%emt 0:00:01]} 21. O-O-O {[%emt 0:00:43]} O-O {[%emt 0:01:15]} 22. Kc2 {[%emt 0:01:44]} Rfc8 {[%emt 0:03:06]} 23. c4 {[%emt 0:05:55]} c5 {[%emt 0:04:34]} 24. Bc3 {[%emt 0:00:51]} Bxc3 {[%emt 0:00:21]} 25. Kxc3 {[%emt 0:00:09]} Rd8 {[%emt 0:00:18]} 26. Ng4 {[%emt 0:00:45]} f6 {[%emt 0:06:17]} 27. f4 {[%emt 0:02:06]} Kf7 {[%emt 0:00:05]} 28. Nf2 {[%emt 0:01:12]} Ke7 {[%emt 0:01:14]} 29. Ne4 {[%emt 0:01:07]} Rxd1 {[%emt 0:05:31]} 30. Rxd1 {[%emt 0:00:03]} Nd7 {[%emt 0:00:17]} 31. Re1 {[%emt 0:07:04]} g6 {[%emt 0:01:19]} 32. g4 {[%emt 0:00:48]} Rc8 {[%emt 0:02:21]} 33. f5 {[%emt 0:01:46]} Ne5 {[%emt 0:03:22]} 34. g5 {[%emt 0:02:55]} exf5 {[%emt 0:00:11]} 35. Nxf6 {[%emt 0:00:54]} Kd6 {[%emt 0:04:22]} 36. Rd1+ {[%emt 0:02:08]} ({Much weaker is} 36. Nxh7 Rh8 37. Nf6 Nf3 $17 (37... Rxh2 38. Ne8+ Ke6 39. Nc7+ Kd6 40. Nb5+ Ke6 41. Nc7+ Kd6 42. Ne8+ Ke6 43. Nc7+ $11)) 36... Ke6 {[%emt 0:00:20]} 37. Nd5 {[%emt 0:00:20]} (37. Nxh7 $2 Rh8 38. Nf6 Rh3+ (38... Rxh2 39. Re1 $11) 39. Kc2 Rxh2+ 40. Kc3 Rh3+ 41. Kc2 Nc6 $17) 37... Nf3 {[%emt 0:00:20]} 38. h4 $1 {[%emt 0:00:36]} Nxh4 {[%emt 0:02:08]} 39. Re1+ {[%emt 0:04:40]} Kd6 {[%emt 0:00:06]} 40. Re3 {[%emt 0:04:05]} h6 {[%emt 0:00:55]} 41. gxh6 {[%emt 0:00:32]} Rh8 {[%emt 0:00:04]} 42. Rd3 {[%emt 0:00:29]} Kc6 {[%emt 0:02:10]} 43. Ne7+ {[%emt 0:00:19]} Kc7 {[%emt 0:00:09]} 44. Nd5+ {[%emt 0:00:26]} Kb7 {[%emt 0:00:59]} 45. Nf4 {[%emt 0:00:21]} Rxh6 {[%emt 0:01:13]} 46. Rd6 {[%emt 0:00:45]} Rh8 {[%emt 0:01:00]} 47. Nxg6 {[%emt 0:00:20]} Rh6 {[%emt 0:00:34]} 48. Rd7+ {[%emt 0:00:13]} Kc8 {[%emt 0:00:06]} 49. Ne5 {[%emt 0:00:12]} Nf3 {[%emt 0:04:15]} 50. Rd5 {[%emt 0:00:08]} Nxe5 {[%emt 0:00:00]} 51. Rxe5 {[%emt 0:00:02]} Rc6 {[%emt 0:00:00]} 52. Rxf5 {[%emt 0:00:19]} Kb7 {[%emt 0:00:00]} 53. Kd3 {[%emt 0:01:03]} Kb6 {[%emt 0:00:00]} 54. Ke4 {[%emt 0:01:14]} Rd6 {[%emt 0:00:00]} 55. Rf8 {[%emt 0:00:48]} Kb7 {[%emt 0:01:12]} 56. Rf3 {[%emt 0:00:45]} Rd4+ {[%emt 0:00:05]} 57. Ke5 {[%emt 0:00:22]} Rd1 {[%emt 0:00:55]} 58. Rf7+ {[%emt 0:00:45]} Kb6 {[%emt 0:00:12]} 59. Rf6+ {[%emt 0:00:16]} Kb7 {[%emt 0:00:10]} 60. Rd6 {[%emt 0:00:20]} Rb1 {[%emt 0:00:22]} 61. Kd5 {[%emt 0:00:46]} (61. Rd7+ $16 Kb6 62. Rd6+ Kb7 63. Rd3) 61... Rxb3 $11 {[%emt 0:00:05]} 62. Kxc5 {[%emt 0:00:05]} Rb4 {[%emt 0:00:12]} 63. Rd7+ {[%emt 0:00:09]} Kb8 {[%emt 0:02:22]} 64. Kd5 {[%emt 0:01:05]} Rxa4 {[%emt 0:00:06]} 65. c5 {[%emt 0:00:06]} Rh4 {[%emt 0:00:20]} 1/2-1/2